[Event "94th FRA-ch Veterans 2019"]
[Site "Chartres"]
[Date "2019.08.18"]
[Round "2.5"]
[White "Peyrin, Jean"]
[Black "Dussol, Pierre"]
[Result "0-1"]
[ECO "A59"]
[WhiteElo "1763"]
[BlackElo "2102"]
[Annotator "NA"]
[PlyCount "59"]
[EventDate "2019.08.17"]
[EventType "swiss"]
[EventCountry "FRA"]
[SourceTitle "playchess.com"]
[Source "ChessBase"]
[SourceQuality "1"]
[TimeControl "40/5400+30:1800+30"]

1. d4 {[%emt 0:00:00]} Nf6 {[%emt 0:00:00]} 2. c4 {[%emt 1:31:00]} c5 {[%emt 0:01:15]} 3. d5 {[%emt 0:00:00]} b5 {[%emt 0:00:59]} 4. cxb5 {[%emt 0:00:00]} a6 {[%emt 0:00:32]} 5. bxa6 {[%emt 0:00:00]} Bxa6 {[%emt 0:00:09]} 6. Nc3 {[%emt 0:02:00]} g6 {[%emt 0:00:33]} 7. e4 {[%emt 0:00:00]} Bxf1 {[%emt 0:00:17]} 8. Kxf1 {[%emt 0:00:00]} d6 {[%emt 0:00:17]} 9. g3 {[%emt 0:00:00]} Bg7 {[%emt 0:00:29]} 10. Kg2 {[%emt 0:00:00]} O-O {[%emt 0:00:23]} 11. Nf3 {[%emt 0:00:00]} Nbd7 {[%emt 0:02:13]} 12. h3 {[%emt 0:00:00]} Qb6 {[%emt 0:05:04]} 13. Re1 {[%emt 0:00:00]} Ne8 {[%emt 0:03:09]} 14. Re2 {[%emt 0:00:00]} Nc7 {[%emt 0:06:09]} 15. Bf4 {[%emt 0:04:30]} c4 {[%emt 0:07:38]} 16. Rc2 {[%emt 0:00:00]} Nc5 {[%emt 0:05:33]} 17. Qe2 {[%emt 0:00:00]} Nd3 {[%emt 0:03:03]} 18. Be3 {[%emt 0:00:00]} Qa6 {[%emt 0:08:30]} 19. Bd4 {[%emt 0:00:00]} e5 {[%emt 0:53:17]} 20. dxe6 {[%emt 0:00:00]} Nxe6 21. Nd5 {[%emt 0:00:00]} Bxd4 22. Qd2 {[%emt 0:00:00]} Bg7 {[%emt 0:00:00]} 23. h4 {[%emt 0:00:00]} Rfb8 {[%emt 0:00:00]} 24. h5 {[%emt 0:00:00]} Rxb2 {[%emt 0:00:00]} 25. hxg6 {[%emt 0:00:00]} hxg6 {[%emt 0:00:00]} 26. Rxb2 {[%emt 0:05:30]} Nxb2 {[%emt 0:00:00]} 27. e5 {[%emt 0:00:00]} Nd3 {[%emt 0:00:00]} 28. a4 {[%emt 0:00:00]} dxe5 {[%emt 0:00:00]} 29. a5 {[%emt 0:00:18]} e4 {[%emt 0:05:00]} 30. Ng5 {[%emt 0:01:42]} 0-1

[Event "94th FRA-ch Veterans 2019"]
[Site "Chartres"]
[Date "2019.08.18"]
[Round "2.6"]
[White "Ribaud-Chevrey, Philippe"]
[Black "Danzanvilliers, Patrice"]
[Result "1/2-1/2"]
[ECO "B02"]
[WhiteElo "2038"]
[BlackElo "1736"]
[Annotator "NA"]
[PlyCount "97"]
[EventDate "2019.08.17"]
[EventType "swiss"]
[EventCountry "FRA"]
[SourceTitle "playchess.com"]
[Source "ChessBase"]
[SourceQuality "1"]
[TimeControl "40/5400+30:1800+30"]

1. Nc3 {[%emt 0:00:00]} d5 {[%emt 0:00:00]} 2. e4 {[%emt 0:00:00]} Nf6 {[%emt 0:00:31]} 3. exd5 {[%emt 0:00:52]} Nxd5 {[%emt 0:00:08]} 4. Bc4 {[%emt 0:00:13]} e6 {[%emt 0:00:25]} 5. d4 {[%emt 0:01:36]} Be7 {[%emt 0:01:38]} 6. Nf3 {[%emt 0:06:25]} O-O {[%emt 0:01:40]} 7. O-O {[%emt 0:01:52]} b6 {[%emt 0:02:23]} 8. Qe2 {[%emt 0:05:39]} Bb7 {[%emt 0:04:37]} 9. Ne4 {[%emt 0:03:39]} a5 {[%emt 0:04:28]} 10. c3 {[%emt 0:13:49]} Ba6 {[%emt 0:02:59]} 11. Bxa6 {[%emt 0:03:25]} Rxa6 {[%emt 0:01:02]} 12. Ne5 {[%emt 0:01:35]} Ra7 {[%emt 0:02:42]} 13. Rd1 {[%emt 0:03:43]} Qe8 {[%emt 0:03:47]} 14. f4 {[%emt 0:11:30]} Nc6 {[%emt 0:04:37]} 15. Nd3 {[%emt 0:02:40]} Nf6 {[%emt 0:03:38]} 16. Nxf6+ {[%emt 0:10:53]} Bxf6 {[%emt 0:00:40]} 17. Re1 {[%emt 0:01:05]} Qd7 {[%emt 0:02:25]} 18. Be3 {[%emt 0:00:25]} Ne7 {[%emt 0:04:20]} 19. Rad1 {[%emt 0:05:13]} c6 {[%emt 0:14:53]} 20. Ne5 {[%emt 0:08:47]} Qc7 {[%emt 0:02:56]} 21. Ng4 {[%emt 0:05:21]} Nd5 {[%emt 0:00:48]} 22. c4 {[%emt 0:00:19]} Nxe3 {[%emt 0:01:39]} 23. Nxf6+ {[%emt 0:00:13]} gxf6 {[%emt 0:00:07]} 24. Qxe3 {[%emt 0:00:07]} Kh8 {[%emt 0:00:55]} 25. f5 {[%emt 0:00:59]} exf5 {[%emt 0:01:27]} 26. Qh6 {[%emt 0:00:15]} Qd6 {[%emt 0:00:56]} 27. Re3 {[%emt 0:00:35]} Rg8 {[%emt 0:02:32]} 28. Red3 {[%emt 0:07:11]} Rg6 {[%emt 0:01:13]} 29. Qd2 {[%emt 0:00:38]} Re7 {[%emt 0:01:52]} 30. d5 {[%emt 0:00:50]} Qc5+ {[%emt 0:01:44]} 31. Qf2 {[%emt 0:00:32]} Re2 {[%emt 0:01:38]} 32. Qxc5 {[%emt 0:00:29]} Rgxg2+ {[%emt 0:00:14]} 33. Kf1 {[%emt 0:00:16]} bxc5 {[%emt 0:00:13]} 34. Rf3 {[%emt 0:00:20]} cxd5 {[%emt 0:02:38]} 35. Rxd5 {[%emt 0:01:06]} Rxb2 {[%emt 0:00:38]} 36. Rdxf5 {[%emt 0:02:07]} Rxh2 {[%emt 0:00:41]} 37. Kg1 {[%emt 0:00:42]} Rbg2+ {[%emt 0:00:11]} 38. Kf1 {[%emt 0:00:05]} Rxa2 {[%emt 0:29:45]} 39. Kg1 {[%emt 0:00:14]} Rag2+ {[%emt 0:00:00]} 40. Kf1 {[%emt 0:00:12]} Rc2 {[%emt 0:00:00]} 41. Kg1 {[%emt 0:30:09]} Rhg2+ {[%emt 0:09:35]} 42. Kf1 {[%emt 0:03:20]} Rg5 {[%emt 0:03:16]} 43. Rxf6 {[%emt 0:02:09]} Rxc4 {[%emt 0:19:39]} 44. Rxf7 {[%emt 0:00:00]} h5 {[%emt 0:00:00]} 45. Ra7 {[%emt 0:00:00]} a4 {[%emt 0:00:00]} 46. Rf8+ {[%emt 0:00:00]} Rg8 {[%emt 0:00:00]} 47. Rff7 {[%emt 0:00:00]} Rg5 {[%emt 0:00:00]} 48. Rf8+ {[%emt 0:02:30]} Rg8 49. Rf3 {[%emt 0:00:30]} 1/2-1/2

[Event "94th FRA-ch Veterans 2019"]
[Site "Chartres"]
[Date "2019.08.19"]
[Round "3.1"]
[White "Vareille, Francois"]
[Black "Ladisic, Alex-Sacha"]
[Result "1-0"]
[ECO "A54"]
[WhiteElo "2423"]
[BlackElo "1943"]
[Annotator "NA"]
[PlyCount "71"]
[EventDate "2019.08.17"]
[EventType "swiss"]
[EventCountry "FRA"]
[SourceTitle "playchess.com"]
[Source "ChessBase"]
[SourceQuality "1"]
[TimeControl "40/5400+30:1800+30"]

1. d4 {[%emt 0:00:00]} Nf6 {[%emt 0:00:00]} 2. Nf3 {[%emt 0:00:00]} d6 {[%emt 0:00:00]} 3. c4 {[%emt 0:00:24]} Nc6 {[%emt 0:00:00]} 4. Nc3 {[%emt 0:00:48]} e5 {[%emt 0:00:01]} 5. g3 {[%emt 0:00:48]} Bg4 {[%emt 0:01:12]} 6. Bg2 {[%emt 0:00:41]} Qc8 {[%emt 0:01:02]} 7. O-O {[%emt 0:00:21]} Bh3 {[%emt 0:03:11]} 8. Nd5 {[%emt 0:04:07]} Bxg2 {[%emt 0:02:15]} 9. Nxf6+ {[%emt 0:03:00]} gxf6 {[%emt 0:00:08]} 10. Kxg2 {[%emt 0:00:07]} Bg7 {[%emt 0:03:39]} 11. dxe5 {[%emt 0:20:21]} fxe5 {[%emt 0:13:42]} 12. e4 {[%emt 0:04:33]} O-O {[%emt 0:04:17]} 13. Nh4 {[%emt 0:08:51]} Ne7 {[%emt 0:00:41]} 14. g4 {[%emt 0:03:00]} Qe6 {[%emt 0:02:56]} 15. b3 {[%emt 0:01:42]} Ng6 {[%emt 0:03:16]} 16. Nf5 {[%emt 0:00:32]} Rfd8 {[%emt 0:06:49]} 17. Qd5 {[%emt 0:10:20]} c6 {[%emt 0:01:52]} 18. Qd3 {[%emt 0:04:20]} Rd7 {[%emt 0:05:39]} 19. Be3 {[%emt 0:09:34]} Rad8 {[%emt 0:00:19]} 20. Rac1 {[%emt 0:00:21]} d5 {[%emt 0:00:47]} 21. cxd5 {[%emt 0:00:13]} cxd5 {[%emt 0:00:11]} 22. exd5 {[%emt 0:00:21]} Rxd5 {[%emt 0:02:20]} 23. Qe4 {[%emt 0:00:27]} R5d7 {[%emt 0:05:29]} 24. Rc4 {[%emt 0:00:54]} b6 {[%emt 0:03:06]} 25. Bg5 {[%emt 0:01:59]} Re8 {[%emt 0:04:37]} 26. Rfc1 {[%emt 0:01:31]} Bf8 {[%emt 0:01:50]} 27. Rc6 {[%emt 0:01:29]} Qd5 {[%emt 0:00:52]} 28. Qxd5 {[%emt 0:01:11]} Rxd5 {[%emt 0:00:06]} 29. Rc8 {[%emt 0:00:43]} Rxc8 {[%emt 0:00:50]} 30. Rxc8 {[%emt 0:00:03]} Rd7 {[%emt 0:04:16]} 31. h4 {[%emt 0:02:14]} f6 {[%emt 0:03:43]} 32. Bxf6 {[%emt 0:01:39]} Kf7 {[%emt 0:00:40]} 33. Bg5 {[%emt 0:00:35]} Bc5 {[%emt 0:02:22]} 34. h5 {[%emt 0:02:52]} Nf4+ {[%emt 0:00:09]} 35. Kf3 {[%emt 0:00:51]} Ne6 {[%emt 0:07:43]} 36. Nh6+ {[%emt 0:00:32]} 1-0

[Event "94th FRA-ch Veterans 2019"]
[Site "Chartres"]
[Date "2019.08.19"]
[Round "3.2"]
[White "Delseny, Serge"]
[Black "Goldenberg, Richard"]
[Result "0-1"]
[ECO "B00"]
[WhiteElo "1915"]
[BlackElo "2219"]
[Annotator "NA"]
[PlyCount "76"]
[EventDate "2019.08.17"]
[EventType "swiss"]
[EventCountry "FRA"]
[SourceTitle "playchess.com"]
[Source "ChessBase"]
[SourceQuality "1"]
[TimeControl "40/5400+30:1800+30"]

1. Nf3 {[%emt 0:00:00]} b6 {[%emt 0:00:00]} 2. e4 {[%emt 0:00:12]} Bb7 {[%emt 0:00:00]} 3. Nc3 {[%emt 0:01:03]} e6 {[%emt 0:01:03]} 4. d4 {[%emt 0:02:28]} Bb4 {[%emt 0:00:56]} 5. Bd3 {[%emt 0:03:07]} Nf6 {[%emt 0:01:09]} 6. Qe2 {[%emt 0:00:53]} d5 {[%emt 0:02:40]} 7. exd5 {[%emt 0:09:19]} Qxd5 {[%emt 0:14:50]} 8. O-O {[%emt 0:03:32]} Bxc3 {[%emt 0:02:10]} 9. bxc3 {[%emt 0:00:09]} O-O {[%emt 0:03:15]} 10. Re1 {[%emt 0:06:59]} Nbd7 {[%emt 0:00:44]} 11. c4 {[%emt 0:03:36]} Qh5 {[%emt 0:06:43]} 12. Ng5 {[%emt 0:04:16]} Qxe2 {[%emt 0:01:39]} 13. Bxe2 {[%emt 0:01:59]} Rfd8 {[%emt 0:03:10]} 14. Bf3 {[%emt 0:03:27]} Bxf3 {[%emt 0:01:19]} 15. Nxf3 {[%emt 0:03:45]} c5 {[%emt 0:03:32]} 16. Bg5 {[%emt 0:05:39]} cxd4 {[%emt 0:02:51]} 17. Nxd4 {[%emt 0:00:37]} Rac8 {[%emt 0:00:53]} 18. Nb5 {[%emt 0:01:20]} Rxc4 {[%emt 0:02:36]} 19. Nxa7 {[%emt 0:00:35]} Rxc2 {[%emt 0:04:15]} 20. Rec1 {[%emt 0:04:34]} Rxc1+ {[%emt 0:03:15]} 21. Rxc1 {[%emt 0:02:43]} h6 {[%emt 0:00:31]} 22. Bxf6 {[%emt 0:02:13]} Nxf6 {[%emt 0:00:07]} 23. Rc8 {[%emt 0:00:09]} Rxc8 {[%emt 0:00:49]} 24. Nxc8 {[%emt 0:00:02]} Nd5 {[%emt 0:00:16]} 25. Kf1 {[%emt 0:02:40]} Kf8 {[%emt 0:01:07]} 26. Ke1 {[%emt 0:01:20]} Ke8 {[%emt 0:01:02]} 27. Nd6+ {[%emt 0:00:42]} Ke7 {[%emt 0:00:12]} 28. Nb5 {[%emt 0:00:28]} Kd7 {[%emt 0:04:29]} 29. Nd4 {[%emt 0:01:31]} Kd6 {[%emt 0:03:23]} 30. Kd2 {[%emt 0:00:39]} Kc5 {[%emt 0:00:54]} 31. Nf3 {[%emt 0:03:10]} Kb4 {[%emt 0:01:36]} 32. Ne5 {[%emt 0:03:05]} f6 {[%emt 0:01:24]} 33. Nd3+ {[%emt 0:01:57]} Ka3 {[%emt 0:00:37]} 34. Nc1 {[%emt 0:06:01]} Kb2 {[%emt 0:01:51]} 35. a4 {[%emt 0:04:05]} Ka3 {[%emt 0:01:32]} 36. Ne2 {[%emt 0:00:06]} Kxa4 {[%emt 0:00:59]} 37. Nd4 {[%emt 0:00:11]} Nc7 {[%emt 0:01:44]} 38. Kc3 {[%emt 0:00:30]} Nb5+ {[%emt 0:01:01]} 0-1

[Event "94th FRA-ch Veterans 2019"]
[Site "Chartres"]
[Date "2019.08.19"]
[Round "3.3"]
[White "Large, Laurent"]
[Black "Delmas-Goyon, Francois"]
[Result "1/2-1/2"]
[ECO "D05"]
[WhiteElo "2183"]
[BlackElo "1926"]
[Annotator "NA"]
[PlyCount "96"]
[EventDate "2019.08.17"]
[EventType "swiss"]
[EventCountry "FRA"]
[SourceTitle "playchess.com"]
[Source "ChessBase"]
[SourceQuality "1"]
[TimeControl "40/5400+30:1800+30"]

1. d4 {[%emt 0:00:00]} Nf6 {[%emt 0:00:00]} 2. Nf3 {[%emt 0:00:00]} e6 {[%emt 0:00:13]} 3. e3 {[%emt 0:00:15]} b6 {[%emt 0:01:21]} 4. Bd3 {[%emt 0:00:51]} Bb7 {[%emt 0:01:20]} 5. Nbd2 {[%emt 0:00:23]} d5 {[%emt 0:02:23]} 6. O-O {[%emt 0:00:33]} Nbd7 {[%emt 0:01:54]} 7. Re1 {[%emt 0:15:37]} Be7 {[%emt 0:01:57]} 8. c4 {[%emt 0:02:58]} O-O {[%emt 0:03:16]} 9. b3 {[%emt 0:05:18]} c5 {[%emt 0:14:04]} 10. Qc2 {[%emt 0:03:58]} cxd4 {[%emt 0:05:31]} 11. exd4 {[%emt 0:00:30]} Rc8 {[%emt 0:00:41]} 12. Ne5 {[%emt 0:09:19]} h6 {[%emt 0:04:38]} 13. Qd1 {[%emt 0:15:05]} Bb4 {[%emt 0:11:24]} 14. Bb2 {[%emt 0:04:13]} Nxe5 {[%emt 0:06:00]} 15. Rxe5 {[%emt 0:09:16]} Bd6 {[%emt 0:04:04]} 16. Re1 {[%emt 0:02:20]} Bb8 {[%emt 0:06:55]} 17. Rc1 {[%emt 0:06:50]} Qd6 {[%emt 0:03:04]} 18. Nf1 {[%emt 0:03:03]} dxc4 {[%emt 0:02:09]} 19. bxc4 {[%emt 0:00:30]} Qf4 {[%emt 0:09:43]} 20. Qe2 {[%emt 0:06:18]} Rfd8 {[%emt 0:04:10]} 21. Rcd1 {[%emt 0:03:02]} Ng4 {[%emt 0:00:56]} 22. Bc1 {[%emt 0:02:16]} Qxd4 {[%emt 0:01:36]} 23. Bh7+ {[%emt 0:00:14]} Kxh7 {[%emt 0:00:10]} 24. Rxd4 {[%emt 0:00:09]} Rxd4 {[%emt 0:00:13]} 25. h3 {[%emt 0:02:25]} Ne5 {[%emt 0:05:01]} 26. Ne3 {[%emt 0:03:27]} Nxc4 {[%emt 0:02:42]} 27. Rd1 {[%emt 0:01:34]} Nxe3 {[%emt 0:01:25]} 28. Bxe3 {[%emt 0:00:17]} Rd5 {[%emt 0:02:34]} 29. Rxd5 {[%emt 0:01:05]} Bxd5 {[%emt 0:00:01]} 30. a3 {[%emt 0:01:16]} Rc4 {[%emt 0:00:51]} 31. Qb2 {[%emt 0:00:46]} Bd6 {[%emt 0:00:32]} 32. Qb5 {[%emt 0:00:42]} Bxa3 {[%emt 0:01:32]} 33. Qa6 {[%emt 0:00:32]} Bd6 {[%emt 0:00:44]} 34. Qxa7 {[%emt 0:00:11]} Rb4 {[%emt 0:00:38]} 35. Kf1 {[%emt 0:01:02]} Rb1+ {[%emt 0:01:24]} 36. Ke2 {[%emt 0:00:04]} Kg6 {[%emt 0:00:31]} 37. h4 {[%emt 0:00:59]} h5 {[%emt 0:01:09]} 38. Qa4 {[%emt 0:00:20]} Rb2+ {[%emt 0:00:31]} 39. Kd3 {[%emt 0:01:06]} Rb3+ {[%emt 0:00:48]} 40. Kc2 {[%emt 0:01:16]} Be5 {[%emt 0:00:51]} 41. g4 {[%emt 0:01:54]} b5 {[%emt 0:05:42]} 42. gxh5+ {[%emt 0:01:53]} Kxh5 {[%emt 0:00:44]} 43. Qa7 {[%emt 0:00:28]} Rc3+ {[%emt 0:03:10]} 44. Kd2 {[%emt 0:00:34]} Rc7 {[%emt 0:00:34]} 45. Qb6 {[%emt 0:00:59]} Rd7 {[%emt 0:02:50]} 46. Ke2 {[%emt 0:00:31]} Bc4+ {[%emt 0:01:24]} 47. Kf3 {[%emt 0:00:23]} Kxh4 {[%emt 0:01:09]} 48. Qc5 {[%emt 0:02:17]} Bd5+ {[%emt 0:19:31]} 1/2-1/2

[Event "94th FRA-ch Veterans 2019"]
[Site "Chartres"]
[Date "2019.08.19"]
[Round "3.4"]
[White "Seknadje-Askenazi, Jose"]
[Black "Daurelle, Herve"]
[Result "1/2-1/2"]
[ECO "B88"]
[WhiteElo "1894"]
[BlackElo "2179"]
[Annotator "NA"]
[PlyCount "73"]
[EventDate "2019.08.17"]
[EventType "swiss"]
[EventCountry "FRA"]
[SourceTitle "playchess.com"]
[Source "ChessBase"]
[SourceQuality "1"]
[TimeControl "40/5400+30:1800+30"]

1. e4 {[%emt 0:14:06]} c5 {[%emt 0:02:12]} 2. Nf3 {[%emt 0:00:09]} d6 {[%emt 0:00:28]} 3. d4 {[%emt 0:00:07]} cxd4 {[%emt 0:00:12]} 4. Nxd4 {[%emt 0:00:02]} Nf6 {[%emt 0:00:55]} 5. Nc3 {[%emt 0:00:02]} Bd7 {[%emt 0:03:59]} 6. Bc4 {[%emt 0:01:21]} Nc6 {[%emt 0:03:39]} 7. O-O {[%emt 0:03:05]} e6 {[%emt 0:21:19]} 8. Be3 {[%emt 0:08:41]} Be7 {[%emt 0:03:05]} 9. f3 {[%emt 0:05:33]} O-O {[%emt 0:03:01]} 10. a3 {[%emt 0:00:29]} a6 {[%emt 0:08:12]} 11. Qe2 {[%emt 0:01:19]} Ne5 {[%emt 0:08:21]} 12. Bb3 {[%emt 0:01:56]} Rc8 {[%emt 0:00:15]} 13. Rfd1 {[%emt 0:01:32]} Qc7 {[%emt 0:01:22]} 14. h3 {[%emt 0:00:53]} Nc4 {[%emt 0:09:51]} 15. Bxc4 {[%emt 0:02:48]} Qxc4 {[%emt 0:00:05]} 16. Rd3 {[%emt 0:02:15]} Rfd8 {[%emt 0:06:26]} 17. f4 {[%emt 0:02:34]} Be8 {[%emt 0:01:15]} 18. Rf1 {[%emt 0:01:43]} d5 {[%emt 0:02:49]} 19. exd5 {[%emt 0:06:20]} Nxd5 {[%emt 0:00:36]} 20. Nxd5 {[%emt 0:00:57]} Rxd5 {[%emt 0:01:58]} 21. Qg4 {[%emt 0:01:12]} h5 {[%emt 0:07:09]} 22. Qg3 {[%emt 0:00:39]} Rcd8 {[%emt 0:04:31]} 23. Rfd1 {[%emt 0:07:03]} Bf6 {[%emt 0:01:13]} 24. Qf2 {[%emt 0:00:36]} g6 {[%emt 0:02:52]} 25. b3 {[%emt 0:05:41]} Qc8 {[%emt 0:00:07]} 26. c4 {[%emt 0:00:29]} R5d7 {[%emt 0:00:29]} 27. Qe2 {[%emt 0:01:28]} e5 {[%emt 0:01:52]} 28. fxe5 {[%emt 0:00:33]} Bxe5 {[%emt 0:00:06]} 29. Nf3 {[%emt 0:01:09]} Rxd3 {[%emt 0:02:10]} 30. Rxd3 {[%emt 0:00:05]} Rxd3 {[%emt 0:01:41]} 31. Qxd3 {[%emt 0:00:03]} Bg7 {[%emt 0:00:26]} 32. Bd4 {[%emt 0:02:29]} Qd8 {[%emt 0:01:08]} 33. Qe3 {[%emt 0:00:21]} Bc6 {[%emt 0:01:01]} 34. Ne5 {[%emt 0:00:34]} Qe8 {[%emt 0:00:53]} 35. Qf4 {[%emt 0:01:29]} g5 {[%emt 0:01:52]} 36. Qh2 {[%emt 0:28:17]} f6 {[%emt 0:00:30]} 37. Qf4 {[%emt 0:00:30]} 1/2-1/2

[Event "94th FRA-ch Veterans 2019"]
[Site "Chartres"]
[Date "2019.08.19"]
[Round "3.5"]
[White "Dussol, Pierre"]
[Black "Canovas, Eric"]
[Result "1-0"]
[ECO "B48"]
[WhiteElo "2102"]
[BlackElo "1904"]
[Annotator "NA"]
[PlyCount "48"]
[EventDate "2019.08.17"]
[EventType "swiss"]
[EventCountry "FRA"]
[SourceTitle "playchess.com"]
[Source "ChessBase"]
[SourceQuality "1"]
[TimeControl "40/5400+30:1800+30"]

1. e4 {[%emt 0:00:00]} c5 {[%emt 0:00:00]} 2. Nf3 {[%emt 0:00:11]} Nc6 {[%emt 0:00:00]} 3. d4 {[%emt 0:02:01]} cxd4 {[%emt 0:00:00]} 4. Nxd4 {[%emt 0:00:21]} Qc7 {[%emt 0:00:00]} 5. Nc3 {[%emt 0:01:49]} e6 {[%emt 0:00:00]} 6. Be3 {[%emt 0:02:44]} Nf6 {[%emt 0:00:09]} 7. Bd3 {[%emt 0:05:44]} a6 {[%emt 0:01:47]} 8. Nxc6 {[%emt 0:08:50]} Qxc6 {[%emt 0:03:54]} 9. O-O {[%emt 0:09:19]} Bb4 {[%emt 0:17:12]} 10. e5 {[%emt 0:07:09]} Bxc3 {[%emt 0:01:18]} 11. bxc3 {[%emt 0:00:19]} Nd5 {[%emt 0:01:48]} 12. Bd2 {[%emt 0:03:45]} f5 {[%emt 0:31:49]} 13. c4 {[%emt 0:13:19]} Ne7 {[%emt 0:01:02]} 14. Bb4 {[%emt 0:03:22]} Ng6 {[%emt 0:05:55]} 15. Qh5 {[%emt 0:04:00]} b6 {[%emt 0:04:02]} 16. Bd6 {[%emt 0:01:37]} Bb7 {[%emt 0:03:11]} 17. Qg5 {[%emt 0:02:49]} Kf7 {[%emt 0:00:48]} 18. f3 {[%emt 0:03:34]} Rhe8 {[%emt 0:03:11]} 19. Rab1 {[%emt 0:04:39]} Nxe5 {[%emt 0:02:00]} 20. c5 {[%emt 0:04:55]} b5 {[%emt 0:07:32]} 21. Be4 {[%emt 0:02:28]} fxe4 {[%emt 0:02:06]} 22. Bxe5 {[%emt 0:02:27]} Rg8 {[%emt 0:08:05]} 23. fxe4+ {[%emt 0:01:34]} Ke8 {[%emt 0:00:07]} 24. Bd6 {[%emt 0:00:22]} Qxe4 {[%emt 0:00:30]} 1-0

[Event "94th FRA-ch Veterans 2019"]
[Site "Chartres"]
[Date "2019.08.19"]
[Round "3.6"]
[White "Flachet, Thierry"]
[Black "Dziedziczak, Vincent"]
[Result "1-0"]
[ECO "B54"]
[WhiteElo "2036"]
[BlackElo "1880"]
[Annotator "NA"]
[PlyCount "59"]
[EventDate "2019.08.17"]
[EventType "swiss"]
[EventCountry "FRA"]
[SourceTitle "playchess.com"]
[Source "ChessBase"]
[SourceQuality "1"]
[TimeControl "40/5400+30:1800+30"]

1. Nf3 {[%emt 0:00:00]} Nf6 {[%emt 0:00:01]} 2. c4 {[%emt 0:00:27]} c5 {[%emt 0:00:38]} 3. d4 {[%emt 0:00:40]} cxd4 {[%emt 0:06:46]} 4. Nxd4 {[%emt 0:00:09]} Nc6 {[%emt 0:02:49]} 5. Nc3 {[%emt 0:00:25]} d6 {[%emt 0:02:51]} 6. e4 {[%emt 0:01:06]} e6 {[%emt 0:03:28]} 7. Be2 {[%emt 0:01:49]} Be7 {[%emt 0:00:36]} 8. O-O {[%emt 0:00:35]} O-O {[%emt 0:00:06]} 9. Be3 {[%emt 0:00:24]} Nxd4 {[%emt 0:01:13]} 10. Qxd4 {[%emt 0:02:34]} Bd7 {[%emt 0:04:17]} 11. Rfd1 {[%emt 0:07:03]} Bc6 {[%emt 0:00:47]} 12. b4 {[%emt 0:12:16]} Qb6 {[%emt 0:12:04]} 13. b5 {[%emt 0:19:31]} Qxd4 {[%emt 0:01:44]} 14. Bxd4 {[%emt 0:00:08]} Bd7 {[%emt 0:06:20]} 15. f4 {[%emt 0:08:37]} Rfd8 {[%emt 0:02:49]} 16. a4 {[%emt 0:05:13]} a5 {[%emt 0:09:06]} 17. Bb6 {[%emt 0:00:23]} Rdc8 {[%emt 0:00:48]} 18. e5 {[%emt 0:00:14]} Ne8 {[%emt 0:05:15]} 19. Ne4 {[%emt 0:06:27]} d5 {[%emt 0:02:31]} 20. cxd5 {[%emt 0:00:18]} exd5 {[%emt 0:00:12]} 21. Rxd5 {[%emt 0:00:19]} Be6 {[%emt 0:01:48]} 22. Rd4 {[%emt 0:00:29]} Bb4 {[%emt 0:01:51]} 23. g4 {[%emt 0:04:43]} Rc2 {[%emt 0:04:39]} 24. Bd3 {[%emt 0:02:02]} Ra2 {[%emt 0:00:21]} 25. Rxa2 {[%emt 0:01:16]} Bxa2 {[%emt 0:00:09]} 26. Bc4 {[%emt 0:01:28]} Bb1 {[%emt 0:03:04]} 27. Ng5 {[%emt 0:04:29]} Rc8 {[%emt 0:06:42]} 28. Bxf7+ {[%emt 0:01:33]} Kf8 {[%emt 0:00:58]} 29. Rd7 {[%emt 0:00:49]} Be7 {[%emt 0:02:15]} 30. Bd5 {[%emt 0:01:33]} 1-0

[Event "94th FRA-ch Veterans 2019"]
[Site "Chartres"]
[Date "2019.08.20"]
[Round "4.1"]
[White "Lucas, Jean-Christian"]
[Black "Vareille, Francois"]
[Result "1/2-1/2"]
[ECO "A03"]
[WhiteElo "2018"]
[BlackElo "2423"]
[Annotator "NA"]
[PlyCount "103"]
[EventDate "2019.08.17"]
[EventType "swiss"]
[EventCountry "FRA"]
[SourceTitle "playchess.com"]
[Source "ChessBase"]
[SourceQuality "1"]
[TimeControl "40/5400+30:1800+30"]

1. f4 {[%emt 0:00:00]} Nf6 {[%emt 0:01:16]} 2. Nf3 {[%emt 0:00:01]} g6 {[%emt 0:00:09]} 3. g3 {[%emt 0:01:28]} Bg7 {[%emt 0:00:30]} 4. Bg2 {[%emt 0:00:07]} O-O {[%emt 0:00:30]} 5. O-O {[%emt 0:01:21]} d5 {[%emt 0:00:29]} 6. d3 {[%emt 0:07:14]} d4 {[%emt 1:30:06]} 7. e4 {[%emt 0:09:53]} dxe3 {[%emt 0:00:00]} 8. c3 {[%emt 0:00:17]} Nd5 {[%emt 0:00:00]} 9. Qe2 {[%emt 0:02:34]} c5 {[%emt 0:00:00]} 10. Na3 {[%emt 0:10:26]} Nc6 {[%emt 0:00:00]} 11. Nc4 {[%emt 0:02:13]} b6 {[%emt 0:00:00]} 12. Nfe5 {[%emt 0:07:38]} Bb7 {[%emt 0:00:00]} 13. Bxe3 {[%emt 0:06:07]} Nxe5 {[%emt 0:00:00]} 14. Nxe5 {[%emt 0:00:47]} Qc7 {[%emt 0:00:00]} 15. Bf2 {[%emt 0:03:48]} g5 {[%emt 0:00:00]} 16. Qg4 {[%emt 0:12:53]} gxf4 {[%emt 0:00:00]} 17. gxf4 {[%emt 0:01:20]} Kh8 {[%emt 0:00:00]} 18. Qf3 {[%emt 0:28:32]} Rab8 {[%emt 0:00:00]} 19. Bg3 {[%emt 0:01:11]} e6 {[%emt 0:00:00]} 20. Rae1 {[%emt 0:00:53]} Ne7 {[%emt 0:00:00]} 21. Qh5 {[%emt 0:00:35]} Bxg2 {[%emt 0:00:00]} 22. Kxg2 {[%emt 0:00:48]} Nf5 {[%emt 0:00:00]} 23. Qe2 {[%emt 0:00:31]} Rbd8 {[%emt 0:00:00]} 24. Rf3 {[%emt 0:00:35]} Rg8 {[%emt 0:00:00]} 25. Kf2 {[%emt 0:00:28]} Rd5 {[%emt 0:00:00]} 26. Nc4 {[%emt 0:00:39]} Rgd8 {[%emt 0:00:00]} 27. Rd1 {[%emt 0:00:12]} Qd7 {[%emt 0:00:00]} 28. Ne3 {[%emt 0:00:45]} Nxg3 {[%emt 0:00:00]} 29. Rxg3 {[%emt 0:00:41]} Rxd3 {[%emt 0:00:00]} 30. Rxd3 {[%emt 0:00:06]} Qxd3 {[%emt 0:00:00]} 31. Qxd3 {[%emt 0:00:05]} Rxd3 {[%emt 0:00:00]} 32. Ke2 {[%emt 0:00:02]} Rd7 {[%emt 0:00:00]} 33. Ng4 {[%emt 0:01:07]} Rd5 {[%emt 0:00:00]} 34. Ne3 {[%emt 0:00:23]} Rh5 {[%emt 0:00:00]} 35. h3 {[%emt 0:00:09]} Kg8 {[%emt 0:00:00]} 36. Kf3 {[%emt 0:01:20]} Kf8 {[%emt 0:00:00]} 37. Ke4 {[%emt 0:00:14]} f5+ {[%emt 0:02:07]} 38. Kd3 {[%emt 0:00:36]} Rh6 {[%emt 0:02:17]} 39. Ng2 {[%emt 0:00:30]} Rg6 {[%emt 0:00:14]} 40. Rxg6 {[%emt 0:00:54]} hxg6 {[%emt 0:00:03]} 41. Kc4 {[%emt 0:00:39]} Bf6 {[%emt 0:06:55]} 42. a4 {[%emt 0:02:56]} a6 {[%emt 0:04:30]} 43. a5 {[%emt 0:03:09]} Bd8 {[%emt 0:01:15]} 44. axb6 {[%emt 0:03:01]} Bxb6 {[%emt 0:00:05]} 45. Ne1 {[%emt 0:00:15]} Ke7 {[%emt 0:09:10]} 46. Nd3 {[%emt 0:00:14]} Kf6 {[%emt 0:00:34]} 47. h4 {[%emt 0:04:44]} a5 {[%emt 0:09:02]} 48. b3 {[%emt 0:19:39]} Bc7 {[%emt 0:14:48]} 49. Kxc5 {[%emt 0:00:30]} e5 50. fxe5+ Bxe5 51. c4 {[%emt 0:01:00]} f4 {[%emt 0:01:30]} 52. Kd5 {[%emt 0:00:30]} 1/2-1/2